fUSD/lending_fUSD_20260202
["ID","MTS","AMOUNT","RATE_DAILY","PERIOD"]
[404334623,1770066076602,500.0,9.884e-05,2]
[404334624,1770066076652,500.0,9.884e-05,2]
[404334625,1770066076700,500.0,9.884e-05,2]
[404334626,1770066076746,500.0,9.884e-05,2]
[404334627,1770066076794,500.0,9.884e-05,2]
[404334628,1770066076839,500.0,9.884e-05,2]
[404334629,1770066076888,500.0,9.884e-05,2]
[404334630,1770066076944,500.0,9.884e-05,2]
[404334631,1770066076994,500.0,9.884e-05,2]
[404334632,1770066077045,500.0,9.884e-05,2]
[404334633,1770066077093,500.0,9.884e-05,2]
[404334634,1770066077137,419.35842904,9.884e-05,2]
[404334635,1770066077167,80.64157096,9.884e-05,2]
[404334636,1770066077221,500.0,9.884e-05,2]
[404334638,1770066093373,2926.947,9.687e-05,2]
[404334639,1770066093417,248.08,9.687e-05,2]
[404334651,1770066133847,6244.34142904,9.785e-05,2]
[404334652,1770066133876,10000.01,9.785e-05,2]
[404334653,1770066133908,10000.01,9.785e-05,2]
[404334654,1770066133937,10000.01,9.785e-05,2]
[404334655,1770066133967,10000.01,9.785e-05,2]
[404334656,1770066133993,10000.01,9.785e-05,2]
[404334657,1770066134018,10000.01,9.785e-05,2]
[404334658,1770066134044,3727.30587096,9.785e-05,2]
[404334660,1770066138460,-1489.12501748,9.884e-05,2]
[404334661,1770066138490,-174.48261702,9.884e-05,2]
[404334662,1770066138521,-482.883945,9.884e-05,2]
[404334663,1770066138551,-1337.5972526,9.884e-05,2]
[404334664,1770066143745,1687.6059797,9.884e-05,2]
[404334665,1770066144020,1344.2263561,9.884e-05,2]
[404334666,1770066144050,537.4890334,9.884e-05,2]
[404334667,1770066144515,1780.6973579,9.884e-05,2]
[404334671,1770066177647,1002.58,9.731e-05,2]
[404334672,1770066181528,300.0,9.884e-05,2]
[404334673,1770066181844,150.0,9.884e-05,2]
[404334677,1770066190223,2368.0474,9.785e-05,2]
[404334680,1770066241531,300.0,9.884e-05,2]
[404334681,1770066277240,196.16868908,9.858e-05,2]
[404334682,1770066278803,500.0,9.884e-05,2]
[404334683,1770066279150,500.0,9.884e-05,2]
[404334684,1770066279479,500.0,9.884e-05,2]
[404334685,1770066279844,500.0,9.884e-05,2]
[404334686,1770066280575,500.0,9.884e-05,2]
[404334687,1770066280673,500.0,9.884e-05,2]
[404334688,1770066280807,365.02751962,9.884e-05,2]
[404334689,1770066280836,134.97248038,9.884e-05,2]
[404334690,1770066281170,500.0,9.884e-05,2]
[404334691,1770066281592,500.0,9.884e-05,2]
[404334692,1770066281888,500.0,9.884e-05,2]
[404334693,1770066282248,500.0,9.884e-05,2]
[404334694,1770066282510,500.0,9.884e-05,2]
[404334695,1770066282844,500.0,9.884e-05,2]
[404334696,1770066283164,500.0,9.884e-05,2]
[404334697,1770066283514,500.0,9.884e-05,2]
[404334698,1770066283849,500.0,9.884e-05,2]
[404334699,1770066284210,500.0,9.884e-05,2]
[404334700,1770066284484,500.0,9.884e-05,2]
[404334701,1770066284531,500.0,9.884e-05,2]
[404334702,1770066284586,500.0,9.884e-05,2]
[404334703,1770066284635,500.0,9.884e-05,2]
[404334704,1770066284694,538.27986459,9.884e-05,2]
[404334705,1770066284748,500.0,9.884e-05,2]
[404334706,1770066284836,500.0,9.884e-05,2]
[404334707,1770066284902,500.0,9.884e-05,2]
[404334708,1770066284975,500.0,9.884e-05,2]
[404334709,1770066285025,326.75765503,9.884e-05,2]
[404334710,1770066285054,173.24234497,9.884e-05,2]
[404334711,1770066285110,500.0,9.884e-05,2]
[404334712,1770066285170,500.0,9.884e-05,2]
[404334713,1770066285227,500.0,9.884e-05,2]
[404334714,1770066285282,500.0,9.884e-05,2]
[404334715,1770066285341,500.0,9.884e-05,2]
[404334716,1770066285408,500.0,9.884e-05,2]
[404334717,1770066285457,500.0,9.884e-05,2]
[404334718,1770066285514,500.0,9.884e-05,2]
[404334719,1770066285575,500.0,9.884e-05,2]
[404334720,1770066297038,500.0,9.884e-05,2]
[404334721,1770066297085,500.0,9.884e-05,2]
[404334722,1770066297131,500.0,9.884e-05,2]
[404334723,1770066297176,500.0,9.884e-05,2]
[404334724,1770066297223,500.0,9.884e-05,2]
[404334725,1770066297269,500.0,9.884e-05,2]
[404334726,1770066297321,500.0,9.884e-05,2]
[404334727,1770066297365,500.0,9.884e-05,2]
[404334728,1770066297414,500.0,9.884e-05,2]
[404334729,1770066297464,500.0,9.884e-05,2]
[404334730,1770066297550,326.76765503,9.884e-05,2]
[404334731,1770066297579,173.23234497,9.884e-05,2]
[404334732,1770066297679,500.0,9.884e-05,2]
[404334733,1770066297725,500.0,9.884e-05,2]
[404334734,1770066297774,500.0,9.884e-05,2]
[404334735,1770066297835,500.0,9.884e-05,2]
[404334736,1770066297884,500.0,9.884e-05,2]
[404334737,1770066297930,500.0,9.884e-05,2]
[404334738,1770066297983,500.0,9.884e-05,2]
[404334739,1770066298038,500.0,9.884e-05,2]
[404334740,1770066298079,278.84332287,9.884e-05,2]
[404334741,1770066298127,500.0,9.884e-05,2]
[404334742,1770066301472,1200.0,9.884e-05,2]
[404334746,1770066303721,2004.6084,9.785e-05,2]
[404334747,1770066319312,1808.02,9.686e-05,2]
[404334748,1770066327904,35.30593216,9.884e-05,2]
[404334749,1770066328027,230.92125417,9.884e-05,2]
[404334750,1770066340193,376.78895611,9.884e-05,2]
[404334751,1770066361984,150.0,9.884e-05,2]
[404334752,1770066362032,300.0,9.884e-05,2]
[404334754,1770066364029,244.0,9.884e-05,2]
[404334755,1770066381463,8698.29978972,9.785e-05,2]
[404334756,1770066381489,1301.70021028,9.785e-05,2]
[404334758,1770066421729,300.0,9.884e-05,2]
[404334763,1770066469766,2223.0551,9.785e-05,2]
[404334764,1770066476025,2500.0,9.785e-05,2]
[404334765,1770066484860,3675.25468972,9.581e-05,2]
[404334766,1770066484888,7743.73531028,9.581e-05,2]
[404334767,1770066496365,10000.01,9.537e-05,2]
[404334768,1770066496389,10000.01,9.537e-05,2]
[404334769,1770066496410,5000.01,9.537e-05,2]
[404334770,1770066496430,1467.31,9.537e-05,2]
[404334771,1770066500809,150.0,9.858e-05,2]
[404334772,1770066501682,150.0,9.858e-05,2]
[404334773,1770066507046,3232.7,9.785e-05,2]
[404334774,1770066507071,5000.01,9.785e-05,2]
[404334775,1770066507095,5000.01,9.785e-05,2]
[404334776,1770066507117,5000.01,9.785e-05,2]
[404334777,1770066507140,5000.01,9.785e-05,2]
[404334778,1770066507162,5000.01,9.785e-05,2]
[404334779,1770066507185,5000.01,9.785e-05,2]
[404334780,1770066507208,5000.01,9.785e-05,2]
[404334781,1770066507230,5000.01,9.785e-05,2]
[404334782,1770066507256,10000.01,9.785e-05,2]
[404334783,1770066507281,10000.01,9.785e-05,2]
[404334784,1770066507308,10000.01,9.785e-05,2]
[404334785,1770066507333,10000.01,9.785e-05,2]
[404334786,1770066507357,10000.01,9.785e-05,2]
[404334787,1770066507379,5000.01,9.785e-05,2]
[404334788,1770066507404,10000.01,9.785e-05,2]
[404334789,1770066507761,10000.01,9.785e-05,2]
[404334790,1770066514318,-5000.01,9.785e-05,2]
[404334791,1770066514436,-5000.01,9.785e-05,2]
[404334792,1770066516408,-5000.01,9.785e-05,2]
[404334793,1770066516522,-5000.01,9.785e-05,2]
[404334794,1770066516650,-5000.01,9.785e-05,2]
[404334795,1770066516809,-5000.01,9.785e-05,2]
[404334796,1770066516963,-5000.01,9.785e-05,2]
[404334797,1770066517112,-5000.01,9.785e-05,2]
[404334798,1770066517381,-5000.01,9.785e-05,2]
[404334799,1770066517510,-5000.01,9.785e-05,2]
[404334800,1770066519570,-5000.01,9.785e-05,2]
[404334801,1770066519811,-5000.01,9.785e-05,2]
[404334802,1770066522436,-5000.01,9.785e-05,2]
[404334803,1770066522564,-5000.01,9.785e-05,2]
[404334804,1770066522694,-5000.01,9.785e-05,2]
[404334805,1770066522828,-5000.01,9.785e-05,2]
[404334806,1770066522948,-5000.01,9.785e-05,2]
[404334807,1770066523113,-5000.01,9.785e-05,2]
[404334808,1770066523222,-5000.01,9.785e-05,2]
[404334809,1770066523337,-5000.01,9.785e-05,2]
[404334810,1770066525578,-5000.01,9.785e-05,2]
[404334811,1770066525820,-5000.01,9.785e-05,2]
[404334812,1770066528674,-5000.01,9.785e-05,2]
[404334813,1770066528724,-5000.01,9.785e-05,2]
[404334814,1770066528739,-5000.01,9.785e-05,2]
[404334815,1770066528847,-5000.01,9.785e-05,2]
[404334816,1770066528980,-5000.01,9.785e-05,2]
[404334817,1770066529097,-5000.01,9.785e-05,2]
[404334818,1770066531201,-5000.01,9.785e-05,2]
[404334819,1770066531221,-5000.01,9.785e-05,2]
[404334820,1770066537481,-5000.01,9.785e-05,2]
[404334821,1770066537606,-5000.01,9.785e-05,2]
[404334822,1770066537723,-5000.01,9.785e-05,2]
[404334823,1770066537845,-5000.01,9.785e-05,2]
[404334824,1770066537990,-5000.01,9.785e-05,2]
[404334826,1770066541966,-150.0,9.784e-05,2]
[404334827,1770066542599,-5221.5433642,9.785e-05,2]
[404334828,1770066542665,-10000.01,9.785e-05,2]
[404334829,1770066542682,-10000.01,9.785e-05,2]
[404334830,1770066542724,-10000.01,9.785e-05,2]
[404334831,1770066542887,-3398.9092642,9.785e-05,2]
[404334832,1770066542915,-3202.1914716,9.785e-05,2]
[404334833,1770066543018,-300.0,9.784e-05,2]
[404334834,1770066543055,-998.5652,9.785e-05,2]
[404334835,1770066543088,-572.0,9.884e-05,2]
[404334836,1770066543822,3333.0,9.863e-05,2]
[404334837,1770066543911,2925.8796,9.863e-05,2]
[404334838,1770066547844,-3741.1304,9.863e-05,2]
[404334839,1770066547956,-436.02,9.863e-05,2]
[404334840,1770066547984,-9127.97,9.863e-05,2]
[404334841,1770066548094,-302.92700854,9.884e-05,2]
[404334842,1770066554438,250.002096,9.835e-05,2]
[404334843,1770066560153,549.38168733,9.884e-05,2]
[404334844,1770066560196,549.38168733,9.884e-05,2]
[404334845,1770066560238,549.38168733,9.884e-05,2]
[404334846,1770066560283,549.38168733,9.884e-05,2]
[404334847,1770066560338,549.38168733,9.884e-05,2]
[404334848,1770066560382,549.38168733,9.884e-05,2]
[404334849,1770066560426,549.38168733,9.884e-05,2]
[404334850,1770066560482,549.38168733,9.884e-05,2]
[404334851,1770066560526,549.38168733,9.884e-05,2]
[404334852,1770066560586,549.38168733,9.884e-05,2]
[404334853,1770066560627,549.38168733,9.884e-05,2]
[404334854,1770066560669,549.38168733,9.884e-05,2]
[404334855,1770066561009,549.38168733,9.884e-05,2]
[404334856,1770066561058,549.38168733,9.884e-05,2]
[404334857,1770066561105,549.38168733,9.884e-05,2]
[404334858,1770066561156,549.38168733,9.884e-05,2]
[404334859,1770066561198,354.04688964,9.884e-05,2]
[404334860,1770066561227,195.33479769,9.884e-05,2]
[404334861,1770066561275,549.38168733,9.884e-05,2]
[404334862,1770066561316,549.38168733,9.884e-05,2]
[404334863,1770066561359,549.38168733,9.884e-05,2]
[404334864,1770066561401,549.38168733,9.884e-05,2]
[404334865,1770066561446,549.38168733,9.884e-05,2]
[404334866,1770066561490,549.38168733,9.884e-05,2]
[404334867,1770066561537,549.38168733,9.884e-05,2]
[404334868,1770066561589,549.38168733,9.884e-05,2]
[404334869,1770066561632,549.38168733,9.884e-05,2]
[404334870,1770066561676,549.38168733,9.884e-05,2]
[404334871,1770066561719,549.38168733,9.884e-05,2]
[404334872,1770066561761,549.38168733,9.884e-05,2]
[404334873,1770066561804,549.38168733,9.884e-05,2]
[404334874,1770066561851,549.38168733,9.884e-05,2]
[404334875,1770066561898,549.38168733,9.884e-05,2]
[404334876,1770066561946,549.38168733,9.884e-05,2]
[404334877,1770066561999,549.38168733,9.884e-05,2]
[404334878,1770066562064,465.1865177,9.884e-05,2]
[404334879,1770066562091,84.19516963,9.884e-05,2]
[404334880,1770066562131,549.38168733,9.884e-05,2]
[404334881,1770066562180,549.38168733,9.884e-05,2]
[404334882,1770066562224,549.38168733,9.884e-05,2]
[404334883,1770066562271,549.38168733,9.884e-05,2]
[404334884,1770066562312,549.38168733,9.884e-05,2]
[404334885,1770066562581,549.38168733,9.884e-05,2]
[404334886,1770066562627,549.38168733,9.884e-05,2]
[404334887,1770066562672,549.38168733,9.884e-05,2]
[404334888,1770066562713,549.38168733,9.884e-05,2]
[404334889,1770066562755,549.38168733,9.884e-05,2]
[404334890,1770066562796,549.38168733,9.884e-05,2]
[404334891,1770066562840,549.38168733,9.884e-05,2]
[404334892,1770066562883,549.38168733,9.884e-05,2]
[404334893,1770066562928,549.38168733,9.884e-05,2]
[404334894,1770066563051,549.38168733,9.884e-05,2]
[404334895,1770066563094,549.38168733,9.884e-05,2]
[404334896,1770066563136,549.38168733,9.884e-05,2]
[404334897,1770066563179,549.38168733,9.884e-05,2]
[404334898,1770066563222,26.94445843,9.884e-05,2]
[404334899,1770066563251,522.4372289,9.884e-05,2]
[404334900,1770066563295,549.38168733,9.884e-05,2]
[404334901,1770066572805,549.38168733,9.884e-05,2]
[404334902,1770066572879,549.38168733,9.884e-05,2]
[404334903,1770066572928,549.38168733,9.884e-05,2]
[404334904,1770066572971,549.38168733,9.884e-05,2]
[404334905,1770066573020,549.38168733,9.884e-05,2]
[404334906,1770066573068,549.38168733,9.884e-05,2]
[404334907,1770066573113,549.38168733,9.884e-05,2]
[404334908,1770066573159,549.38168733,9.884e-05,2]
[404334909,1770066573201,549.38168733,9.884e-05,2]
[404334910,1770066573245,549.38168733,9.884e-05,2]
[404334911,1770066573291,549.38168733,9.884e-05,2]
[404334912,1770066573341,549.38168733,9.884e-05,2]
[404334913,1770066573390,549.38168733,9.884e-05,2]
[404334914,1770066573436,549.38168733,9.884e-05,2]
[404334915,1770066573477,549.38168733,9.884e-05,2]
[404334916,1770066573519,549.38168733,9.884e-05,2]
[404334917,1770066573574,138.08408649,9.884e-05,2]
[404334918,1770066573605,411.29760084,9.884e-05,2]
[404334919,1770066573653,549.38168733,9.884e-05,2]
[404334920,1770066573697,549.38168733,9.884e-05,2]
[404334921,1770066573738,549.38168733,9.884e-05,2]
[404334922,1770066573779,549.38168733,9.884e-05,2]
[404334923,1770066574098,549.38168733,9.884e-05,2]
[404334924,1770066574154,549.38168733,9.884e-05,2]
[404334925,1770066574200,549.38168733,9.884e-05,2]
[404334926,1770066574249,549.38168733,9.884e-05,2]
[404334927,1770066574319,549.38168733,9.884e-05,2]
[404334928,1770066574378,549.38168733,9.884e-05,2]
[404334929,1770066574429,549.38168733,9.884e-05,2]
[404334930,1770066574476,549.38168733,9.884e-05,2]
[404334931,1770066574528,549.38168733,9.884e-05,2]
[404334932,1770066574580,549.38168733,9.884e-05,2]
[404334933,1770066574631,549.38168733,9.884e-05,2]
[404334934,1770066574683,549.38168733,9.884e-05,2]
[404334935,1770066574737,549.38168733,9.884e-05,2]
[404334936,1770066574790,249.22371455,9.884e-05,2]
[404334937,1770066574820,300.15797278,9.884e-05,2]
[404334938,1770066574865,549.38168733,9.884e-05,2]
[404334939,1770066574911,549.38168733,9.884e-05,2]
[404334940,1770066577655,8601.08865256,9.785e-05,2]
[404334941,1770066577685,10000.01,9.785e-05,2]
[404334942,1770066577714,10000.01,9.785e-05,2]
[404334943,1770066577742,10000.01,9.785e-05,2]
[404334944,1770066577771,10000.01,9.785e-05,2]
[404334945,1770066577800,10000.01,9.785e-05,2]
[404334946,1770066577829,10000.01,9.785e-05,2]
[404334947,1770066580432,-605.85401708,9.785e-05,2]
[404334948,1770066580590,-10000.01,9.785e-05,2]
[404334949,1770066580838,-10000.01,9.785e-05,2]
[404334950,1770066581021,-10000.01,9.785e-05,2]
[404334951,1770066584263,-10000.01,9.785e-05,2]
[404334952,1770066584399,-10000.01,9.785e-05,2]
[404334953,1770066584533,-10000.01,9.785e-05,2]
[404334954,1770066584659,-10000.01,9.785e-05,2]
[404334955,1770066584809,-10000.01,9.785e-05,2]
[404334956,1770066584934,-10000.01,9.785e-05,2]
[404334957,1770066585067,-10000.01,9.785e-05,2]
[404334958,1770066585182,-10000.01,9.785e-05,2]
[404334959,1770066585329,-10000.01,9.785e-05,2]
[404334960,1770066585478,-10000.01,9.785e-05,2]
[404334961,1770066585619,-10000.01,9.785e-05,2]
[404334962,1770066585793,-10000.01,9.785e-05,2]
[404334963,1770066585940,-10000.01,9.785e-05,2]
[404334964,1770066586118,-10000.01,9.785e-05,2]
[404334965,1770066586271,-10000.01,9.785e-05,2]
[404334966,1770066590200,-10000.01,9.785e-05,2]
[404334967,1770066590330,-10000.01,9.785e-05,2]
[404334968,1770066590507,-10000.01,9.785e-05,2]
[404334969,1770066590639,-10000.01,9.785e-05,2]
[404334970,1770066590807,-10000.01,9.785e-05,2]
[404334971,1770066590946,-10000.01,9.785e-05,2]
[404334972,1770066591055,-10000.01,9.785e-05,2]
[404334973,1770066591177,-10000.01,9.785e-05,2]
[404334974,1770066591316,-10000.01,9.785e-05,2]
[404334975,1770066591427,-10000.01,9.785e-05,2]
[404334976,1770066591601,-10000.01,9.785e-05,2]
[404334977,1770066591775,-10000.01,9.785e-05,2]
[404334978,1770066592193,-10000.01,9.785e-05,2]
[404334979,1770066592223,-10000.01,9.785e-05,2]
[404334980,1770066592248,-10000.01,9.785e-05,2]
[404334981,1770066601584,1200.0,9.784e-05,2]
[404334982,1770066611538,151.0,9.782e-05,2]
[404334984,1770066632079,-928.52587715,9.785e-05,2]
[404334986,1770066632166,-327274.07544621,9.785e-05,2]
[404334987,1770066632178,-29148.26641353,9.785e-05,2]
[404334988,1770066632207,-5213.81017421,9.785e-05,2]
[404334989,1770066632226,-1100.0,9.785e-05,2]
[404334990,1770066632238,-440.3609761,9.785e-05,2]
[404334991,1770066632250,-2126.40458596,9.785e-05,2]
[404334992,1770066632274,-471.84604647,9.785e-05,2]
[404334993,1770066632286,-2674.85455148,9.785e-05,2]
[404334994,1770066632299,-393.653476,9.785e-05,2]
[404334995,1770066632311,-5440.6233996,9.785e-05,2]
[404334996,1770066632322,-990.97939,9.785e-05,2]
[404334997,1770066632337,-5000.01,9.785e-05,2]
[404334999,1770066632517,-5000.01,9.785e-05,2]
[404335002,1770066638215,-933.27304708,9.785e-05,2]
[404335003,1770066638227,-4176.20288896,9.785e-05,2]
[404335004,1770066638271,-12650.53831887,9.785e-05,2]
[404335005,1770066638283,-78000.00000004,9.785e-05,2]
[404335006,1770066638329,-3196.65031194,9.785e-05,2]
[404335007,1770066638340,-2615632.58242676,9.785e-05,2]
[404335008,1770066638350,-2500.0,9.785e-05,2]
[404335009,1770066638359,-230.0,9.785e-05,2]
[404335010,1770066638368,-263.75226927,9.884e-05,2]
[404335011,1770066638377,-500.0,9.884e-05,2]
[404335012,1770066638386,-500.0,9.884e-05,2]
[404335013,1770066638395,-500.0,9.884e-05,2]
[404335014,1770066638404,-500.0,9.884e-05,2]
[404335015,1770066638415,-252.20035865,9.884e-05,2]
[404335016,1770066638425,-250.0,9.885e-05,2]
[404335017,1770066638434,-500.0,9.885e-05,2]
[404335018,1770066638443,-2876.87704696,9.885e-05,2]
[404335019,1770066638453,-230.64189733,9.885e-05,2]
[404335020,1770066638463,-250.0,9.891e-05,2]
[404335021,1770066638472,-150.0,9.913e-05,2]
[404335022,1770066638482,-500.0,9.914e-05,2]
[404335023,1770066638491,-500.0,9.914e-05,2]
[404335025,1770066638500,-539.56453595,9.914e-05,2]
[404335027,1770066638509,-150.0,9.968e-05,2]
[404335029,1770066638519,-6998.0119,9.973e-05,2]
[404335031,1770066638528,-1000.0,9.983e-05,2]
[404335033,1770066638537,-1000.0,9.984e-05,2]
[404335035,1770066638546,-1000.0,9.985e-05,2]
[404335037,1770066638555,-500.0,9.985e-05,2]
[404335039,1770066638565,-200.0,9.985e-05,2]
[404335040,1770066638574,-183.74,0.0001,2]
[404335043,1770066638584,-500.0,0.0001,2]
[404335044,1770066638593,-152.03521204,0.0001,2]
[404335047,1770066638603,-260706.89,0.0001,2]
[404335049,1770066638613,-218.86300485,0.0001,2]
[404335051,1770066638623,-540.51652494,0.0001,2]
[404335053,1770066638632,-151.0,0.0001,2]
[404335055,1770066638641,-151.0,0.0001,2]
[404335057,1770066638650,-151.0,0.0001,2]
[404335058,1770066638660,-151.0,0.0001,2]
[404335061,1770066638669,-151.0,0.0001,2]
[404335063,1770066638678,-151.0,0.0001,2]
[404335065,1770066638688,-500.0,0.0001,2]
[404335067,1770066638698,-151.0,0.0001,2]
[404335068,1770066638707,-500.0,0.0001,2]
[404335070,1770066638717,-151.0,0.0001,2]
[404335072,1770066638727,-500.0,0.0001,2]
[404335074,1770066638736,-151.0,0.0001,2]
[404335077,1770066638746,-151.0,0.0001,2]
[404335079,1770066638755,-151.0,0.0001,2]
[404335080,1770066638764,-151.0,0.0001,2]
[404335083,1770066638774,-151.0,0.0001,2]
[404335084,1770066638783,-200.0,0.0001,2]
[404335086,1770066638793,-151.0,0.0001,2]
[404335088,1770066638802,-151.0,0.0001,2]
[404335091,1770066638812,-151.0,0.0001,2]
[404335093,1770066638822,-151.0,0.0001,2]
[404335095,1770066638831,-151.0,0.0001,2]
[404335097,1770066638840,-151.0,0.0001,2]
[404335099,1770066638850,-151.0,0.0001,2]
[404335100,1770066638859,-151.0,0.0001,2]
[404335102,1770066638868,-151.0,0.0001,2]
[404335104,1770066638878,-151.0,0.0001,2]
[404335105,1770066638887,-151.0,0.0001,2]
[404335107,1770066638896,-500.0,0.0001,2]
[404335109,1770066638906,-500.0,0.0001,2]
[404335111,1770066638916,-500.0,0.0001,2]
[404335113,1770066638925,-500.0,0.0001,2]
[404335115,1770066638934,-500.0,0.0001,2]
[404335117,1770066638943,-500.0,0.0001,2]
[404335119,1770066638953,-500.0,0.0001,2]
[404335121,1770066638962,-500.0,0.0001,2]
[404335123,1770066638971,-500.0,0.0001,2]
[404335125,1770066638980,-500.0,0.0001,2]
[404335127,1770066638989,-500.0,0.0001,2]
[404335129,1770066638999,-500.0,0.0001,2]
[404335131,1770066639008,-200.0,0.0001,2]
[404335133,1770066639019,-944.63661864,0.0001,2]
[404335135,1770066639028,-5971.89146312,0.0001,2]
[404335137,1770066639038,-658.58415404,0.0001,2]
[404335139,1770066639048,-200.0,0.00010022,2]
[404335141,1770066639060,-200.0,0.00010085,2]
[404335168,1770066639301,-27680.2,0.00010085,2]
[404335170,1770066639311,-9999.99,0.00010085,2]
[404335172,1770066639319,-29999.99,0.00010085,2]
[404335174,1770066639329,-19999.99,0.00010085,2]
[404335175,1770066639339,-9999.99,0.00010085,2]
[404335176,1770066639349,-9156.55,0.00010085,2]
[404335177,1770066639358,-348.93,0.00010085,2]
[404335178,1770066639367,-4999.99,0.00010085,2]
[404335179,1770066639375,-1201.39,0.00010085,2]
[404335180,1770066639384,-150.99,0.00010085,2]
[404335181,1770066639393,-999.99,0.00010085,2]
[404335182,1770066639402,-14009.2,0.00010085,2]
[404335183,1770066639411,-427.52,0.00010085,2]
[404335184,1770066639419,-333.0,0.00010184,2]
[404335185,1770066639428,-200.0,0.00010186,2]
[404335187,1770066639437,-1470.33,0.00010186,2]
[404335189,1770066639446,-433.69,0.00010186,2]
[404335191,1770066639455,-150.99,0.00010186,2]
[404335193,1770066639464,-9999.99,0.00010186,2]
[404335195,1770066639474,-499.99,0.00010186,2]
[404335197,1770066639484,-9999.99,0.00010186,2]
[404335199,1770066639493,-9999.99,0.00010186,2]
[404335201,1770066639503,-299.99,0.00010186,2]
[404335203,1770066639512,-9999.99,0.00010186,2]
[404335205,1770066639521,-183.0,0.00010201,2]
[404335207,1770066639530,-362.87643987,0.00010205,2]
[404335209,1770066639539,-1490.0,0.00010214,2]
[404335211,1770066639548,-175.0,0.00010222,2]
[404335213,1770066639557,-1103.32935093,0.00010225,2]
[404335215,1770066639566,-960.0,0.00010235,2]
[404335217,1770066639575,-500.0,0.00010274,2]
[404335219,1770066639584,-200.0,0.00010288,2]
[404335221,1770066639593,-200.0,0.0001039,2]
[404335223,1770066639603,-500.0,0.00010483,2]
[404335225,1770066639612,-612.5841234,0.00010501,2]
[404335227,1770066639621,-767.0,0.0001052,2]
[404335229,1770066639631,-500.0,0.00010548,2]
[404335231,1770066639641,-200.0,0.00010548,2]
[404335233,1770066639650,-500.0,0.00010548,2]
[404335235,1770066639659,-208.65826531,0.00010548,2]
[404335237,1770066639668,-285.0,0.00010552,2]
[404335239,1770066639677,-564.0,0.00010583,2]
[404335241,1770066639687,-192.11112163,0.00010615,2]
[404335243,1770066639696,-255.0,0.00010762,2]
[404335245,1770066639705,-1680.0,0.00010762,2]
[404335247,1770066639714,-500.0,0.00010822,2]
[404335249,1770066639724,-1852.42,0.00010866,2]
[404335251,1770066639733,-500.0,0.00010873,2]
[404335253,1770066639742,-250.0,0.00010873,2]
[404335255,1770066639751,-193.0,0.00010873,2]
[404335257,1770066639760,-5871.88102289,0.000109,2]
[404335259,1770066639769,-500.0,0.00010959,2]
[404335261,1770066639778,-166.66,0.00010959,2]
[404335263,1770066639787,-165.6164086,0.00010959,2]
[404335265,1770066639797,-166.66,0.00011068,2]
[404335267,1770066639806,-944.63661864,0.00011089,2]
[404335269,1770066639815,-500.0,0.00011096,2]
[404335271,1770066639824,-200.0,0.00011096,2]
[404335273,1770066639834,-500.0,0.00011096,2]
[404335275,1770066639844,-64477.25482096,0.00011099,2]
[404335277,1770066639853,-64477.25482088,0.00011099,2]
[404335279,1770066639863,-50502.32108777,0.00011099,2]
[404335281,1770066639872,-50502.32108768,0.00011099,2]
[404335283,1770066639882,-166.66,0.00011178,2]
[404335285,1770066639891,-50502.32108768,0.0001118,2]
[404335287,1770066639900,-64477.25482088,0.0001118,2]
[404335289,1770066639909,-212.94,0.00011233,2]
[404335291,1770066639919,-166.66,0.00011288,2]
[404335293,1770066639928,-500.0,0.0001137,2]
[404335295,1770066639937,-166.66,0.00011397,2]
[404335297,1770066639946,-569.72,0.00011399,2]
[404335299,1770066639956,-2922.64,0.00011404,2]
[404335301,1770066639965,-166.66,0.00011507,2]
[404335303,1770066639975,-181.63,0.00011596,2]
[404335305,1770066639983,-500.0,0.00011644,2]